[Event "*** SCC Grand Prix: Titled Tuesday Blitz"]
[Site "Chess.com"]
[Date "2020.07.14"]
[Round "7"]
[White "Canonkasparov"]
[Black "VovenRogel"]
[Result "1-0"]
[WhiteElo "2578"]
[BlackElo "2719"]
[TimeControl "180+1"]
[EndTime "11:22:31 PDT"]
[Termination "Canonkasparov won on time"]

1. d4 {[%clk 0:03:00.9]} 1... Nf6 {[%clk 0:02:59.1]} 2. Nf3 {[%clk 0:03:01.8]}
2... g6 {[%clk 0:02:59]} 3. Bg5 {[%clk 0:03:01.3]} 3... Bg7 {[%clk 0:02:58.5]}
4. Nbd2 {[%clk 0:03:01.3]} 4... d5 {[%clk 0:02:56.4]} 5. e3 {[%clk 0:03:00.1]}
5... O-O {[%clk 0:02:56]} 6. h3 {[%clk 0:02:57]} 6... c5 {[%clk 0:02:48.7]} 7.
c3 {[%clk 0:02:56.4]} 7... b6 {[%clk 0:02:46.1]} 8. Be2 {[%clk 0:02:53.1]} 8...
Bb7 {[%clk 0:02:39.4]} 9. O-O {[%clk 0:02:51.5]} 9... Nbd7 {[%clk 0:02:39.5]}
10. Bf4 {[%clk 0:02:47.6]} 10... Ne8 {[%clk 0:02:26.6]} 11. a4 {[%clk
0:02:41.8]} 11... Nd6 {[%clk 0:02:20.3]} 12. a5 {[%clk 0:02:28.2]} 12... c4
{[%clk 0:02:15.1]} 13. b3 {[%clk 0:02:22.9]} 13... b5 {[%clk 0:02:05.4]} 14.
bxc4 {[%clk 0:02:22.3]} 14... Nxc4 {[%clk 0:01:59.9]} 15. Nxc4 {[%clk 0:02:20]}
15... dxc4 {[%clk 0:01:58.7]} 16. a6 {[%clk 0:02:17.8]} 16... Bd5 {[%clk
0:01:54.7]} 17. Qb1 {[%clk 0:02:13.6]} 17... Bc6 {[%clk 0:01:36.8]} 18. Rc1
{[%clk 0:02:03.8]} 18... Re8 {[%clk 0:01:33.3]} 19. Bh2 {[%clk 0:02:03.1]} 19...
e5 {[%clk 0:01:30.5]} 20. d5 {[%clk 0:01:59]} 20... Bxd5 {[%clk 0:01:29.3]} 21.
Qxb5 {[%clk 0:01:59]} 21... Be6 {[%clk 0:01:24.2]} 22. Rd1 {[%clk 0:01:44.6]}
22... Rb8 {[%clk 0:01:22.4]} 23. Qa4 {[%clk 0:01:40.8]} 23... Qc7 {[%clk
0:01:19.4]} 24. Nd4 {[%clk 0:01:38.6]} 24... Bd5 {[%clk 0:01:01.7]} 25. Nb5
{[%clk 0:01:21.9]} 25... Qc6 {[%clk 0:01:00.3]} 26. Nxa7 {[%clk 0:01:19.7]}
26... Qa8 {[%clk 0:00:22.9]} 27. Rxd5 {[%clk 0:00:58.5]} 27... Nb6 {[%clk
0:00:20]} 28. Qc6 {[%clk 0:00:54]} 28... Nxd5 {[%clk 0:00:18.1]} 29. Bf3 {[%clk
0:00:49.4]} 29... e4 {[%clk 0:00:12]} 30. Bxb8 {[%clk 0:00:46.9]} 30... Qxb8
{[%clk 0:00:11.4]} 31. Qxd5 {[%clk 0:00:43.4]} 31... exf3 {[%clk 0:00:09.6]} 32.
Nc6 {[%clk 0:00:42.3]} 32... Qb2 {[%clk 0:00:08.3]} 33. Rd1 {[%clk 0:00:39.3]}
33... Qxc3 {[%clk 0:00:03.9]} 34. Qd7 {[%clk 0:00:37.7]} 34... Rf8 {[%clk
0:00:03.1]} 35. a7 {[%clk 0:00:35.9]} 35... Qa3 {[%clk 0:00:03]} 36. Qb7 {[%clk
0:00:32]} 36... c3 {[%clk 0:00:02.6]} 37. Rd8 {[%clk 0:00:27.5]} 37... c2 {[%clk
0:00:02]} 38. Rxf8+ {[%clk 0:00:27.1]} 38... Bxf8 {[%clk 0:00:02.9]} 39. a8=Q
{[%clk 0:00:24.9]} 39... c1=Q+ {[%clk 0:00:03]} 40. Kh2 {[%clk 0:00:25]} 40...
Qd6+ {[%clk 0:00:02.8]} 41. g3 {[%clk 0:00:20.2]} 41... Qf1 {[%clk 0:00:03.1]}
42. Ne7+ {[%clk 0:00:17.1]} 42... Qxe7 {[%clk 0:00:03.3]} 43. Qxf3 {[%clk
0:00:17.1]} 43... Qc1 {[%clk 0:00:02.1]} 44. Qad5 {[%clk 0:00:16.8]} 44... Qcc7
{[%clk 0:00:02.5]} 45. h4 {[%clk 0:00:16.9]} 45... Qcd6 {[%clk 0:00:03]} 46. Qc4
{[%clk 0:00:16.6]} 46... Qdf6 {[%clk 0:00:02.8]} 47. Qfe2 {[%clk 0:00:16]} 47...
Qee6 {[%clk 0:00:02.8]} 48. Qcd3 {[%clk 0:00:14.8]} 48... h5 {[%clk 0:00:03.7]}
49. Kg2 {[%clk 0:00:14.8]} 49... Qef5 {[%clk 0:00:03.8]} 50. Qc4 {[%clk
0:00:13.8]} 50... Q6e6 {[%clk 0:00:04]} 51. Qxe6 {[%clk 0:00:13.9]} 51... Qxe6
{[%clk 0:00:04.9]} 52. Qf3 {[%clk 0:00:14.2]} 52... Qe5 {[%clk 0:00:04.8]} 53.
Qa8 {[%clk 0:00:14.5]} 53... Qg7 {[%clk 0:00:05.7]} 54. Qb7 {[%clk 0:00:14.6]}
54... Qf6 {[%clk 0:00:05.2]} 55. Qa8 {[%clk 0:00:15.5]} 55... Qe6 {[%clk
0:00:06.1]} 56. Qb7 {[%clk 0:00:15.5]} 56... Kg7 {[%clk 0:00:07]} 57. Qa8 {[%clk
0:00:15.8]} 57... Qf6 {[%clk 0:00:07.9]} 58. Qe4 {[%clk 0:00:15.6]} 58... Qe6
{[%clk 0:00:07.1]} 59. Qb7 {[%clk 0:00:15.9]} 59... Be7 {[%clk 0:00:05.9]} 60.
Qb2+ {[%clk 0:00:16.2]} 60... Bf6 {[%clk 0:00:06.8]} 61. Qb7 {[%clk 0:00:16.4]}
61... Qe5 {[%clk 0:00:06.8]} 62. Kh1 {[%clk 0:00:16]} 62... Qb2 {[%clk
0:00:07.7]} 63. Qf3 {[%clk 0:00:15.5]} 63... Bc3 {[%clk 0:00:07.4]} 64. Kg2
{[%clk 0:00:16.1]} 64... Qd2 {[%clk 0:00:06.8]} 65. Qe4 {[%clk 0:00:16.2]} 65...
Qd6 {[%clk 0:00:04.4]} 66. Qf3 {[%clk 0:00:16.1]} 66... Bf6 {[%clk 0:00:05.3]}
67. Qe4 {[%clk 0:00:16.3]} 67... Qe6 {[%clk 0:00:05]} 68. Qf3 {[%clk 0:00:16.1]}
68... Kf8 {[%clk 0:00:05]} 69. Qa8+ {[%clk 0:00:16.1]} 69... Ke7 {[%clk
0:00:05.9]} 70. Qb7+ {[%clk 0:00:16.2]} 70... Qd7 {[%clk 0:00:06.8]} 71. Qe4+
{[%clk 0:00:16.7]} 71... Kd8 {[%clk 0:00:05.7]} 72. Qa8+ {[%clk 0:00:16.9]}
72... Ke7 {[%clk 0:00:05.7]} 73. Qf3 {[%clk 0:00:17.2]} 73... Kf8 {[%clk
0:00:05.5]} 74. Qxf6 {[%clk 0:00:17.4]} 74... Qd5+ {[%clk 0:00:05.2]} 75. Kg1
{[%clk 0:00:17.1]} 75... Kg8 {[%clk 0:00:05.1]} 76. Qd4 {[%clk 0:00:16.9]} 76...
Qf3 {[%clk 0:00:04.4]} 77. Qf4 {[%clk 0:00:16.5]} 77... Qd1+ {[%clk 0:00:03.6]}
78. Kg2 {[%clk 0:00:16.9]} 78... Qd5+ {[%clk 0:00:04.1]} 79. Qf3 {[%clk
0:00:17.3]} 79... Qa2 {[%clk 0:00:05]} 80. e4 {[%clk 0:00:17.4]} 80... Kg7
{[%clk 0:00:04.2]} 81. Qd3 {[%clk 0:00:17.1]} 81... Kg8 {[%clk 0:00:02.6]} 82.
Qd4 {[%clk 0:00:17.3]} 82... Qe6 {[%clk 0:00:03.1]} 83. Qe3 {[%clk 0:00:14.8]}
83... Qf6 {[%clk 0:00:02.8]} 84. Qf4 {[%clk 0:00:14.7]} 84... Qe6 {[%clk
0:00:03.7]} 85. Qe3 {[%clk 0:00:13.2]} 85... Kh7 {[%clk 0:00:03.7]} 86. Qc5
{[%clk 0:00:11.7]} 86... Kg8 {[%clk 0:00:04.6]} 87. Qd5 {[%clk 0:00:11.5]} 87...
Qe7 {[%clk 0:00:04.5]} 88. Kf3 {[%clk 0:00:11.4]} 88... Kg7 {[%clk 0:00:04.4]}
89. Kf4 {[%clk 0:00:11.1]} 89... Kg8 {[%clk 0:00:05.3]} 90. Qd4 {[%clk
0:00:10.3]} 90... Qd7 {[%clk 0:00:04.5]} 91. Qxd7 {[%clk 0:00:10.1]} 1-0

[Event "*** SCC Grand Prix: Titled Tuesday Blitz"]
[Site "Chess.com"]
[Date "2020.07.14"]
[Round "8"]
[White "DishonorOnYourCow"]
[Black "Klaus1995"]
[Result "1-0"]
[WhiteElo "2321"]
[BlackElo "1892"]
[TimeControl "180+1"]
[EndTime "11:32:04 PDT"]
[Termination "DishonorOnYourCow won by resignation"]

1. d4 {[%clk 0:03:00.9]} 1... Nf6 {[%clk 0:02:59.5]} 2. c4 {[%clk 0:03:01.1]}
2... e6 {[%clk 0:02:59]} 3. Nf3 {[%clk 0:02:56.9]} 3... c5 {[%clk 0:02:59.4]} 4.
d5 {[%clk 0:02:53]} 4... exd5 {[%clk 0:03:00.3]} 5. cxd5 {[%clk 0:02:53.9]} 5...
d6 {[%clk 0:03:00.4]} 6. Nc3 {[%clk 0:02:52.5]} 6... g6 {[%clk 0:03:00.8]} 7.
Nd2 {[%clk 0:02:51.8]} 7... a6 {[%clk 0:03:00]} 8. a4 {[%clk 0:02:45.6]} 8...
Bg7 {[%clk 0:02:59.5]} 9. e4 {[%clk 0:02:42.8]} 9... O-O {[%clk 0:02:58.9]} 10.
Be2 {[%clk 0:02:37.7]} 10... Re8 {[%clk 0:02:58.8]} 11. O-O {[%clk 0:02:34.5]}
11... a5 {[%clk 0:02:42.1]} 12. f3 {[%clk 0:02:28.5]} 12... Na6 {[%clk
0:02:41.3]} 13. Nc4 {[%clk 0:02:26.1]} 13... Nh5 {[%clk 0:02:35]} 14. Nb5 {[%clk
0:02:18.3]} 14... Bf8 {[%clk 0:02:06.7]} 15. f4 {[%clk 0:02:09.7]} 15... Rxe4
{[%clk 0:02:03.6]} 16. Nd2 {[%clk 0:01:56.7]} 16... Rd4 {[%clk 0:01:57.8]} 17.
Nxd4 {[%clk 0:01:53]} 17... cxd4 {[%clk 0:01:57.3]} 1-0

[Event "*** SCC Grand Prix: Titled Tuesday Blitz"]
[Site "Chess.com"]
[Date "2020.07.14"]
[Round "8"]
[White "Carnivoras"]
[Black "mishikomchedlishvili"]
[Result "0-1"]
[WhiteElo "2609"]
[BlackElo "2775"]
[TimeControl "180+1"]
[EndTime "11:32:06 PDT"]
[Termination "mishikomchedlishvili won by resignation"]

1. d4 {[%clk 0:03:00.9]} 1... d5 {[%clk 0:02:56.3]} 2. Nf3 {[%clk 0:03:00.9]}
2... Nf6 {[%clk 0:02:53.3]} 3. Bg5 {[%clk 0:03:00.2]} 3... Ne4 {[%clk
0:02:52.2]} 4. Bh4 {[%clk 0:02:59.8]} 4... c6 {[%clk 0:02:46.1]} 5. Nbd2 {[%clk
0:02:55.9]} 5... Bf5 {[%clk 0:02:45.6]} 6. e3 {[%clk 0:02:55.7]} 6... Nd7 {[%clk
0:02:43.4]} 7. Bd3 {[%clk 0:02:55.5]} 7... g6 {[%clk 0:02:41.4]} 8. O-O {[%clk
0:02:55.1]} 8... Bg7 {[%clk 0:02:41]} 9. Qe2 {[%clk 0:02:45.9]} 9... O-O {[%clk
0:02:39]} 10. Ng5 {[%clk 0:02:38.7]} 10... Nxd2 {[%clk 0:02:33.2]} 11. Qxd2
{[%clk 0:02:37]} 11... Bxd3 {[%clk 0:02:32.3]} 12. cxd3 {[%clk 0:02:35.3]} 12...
e5 {[%clk 0:02:27.3]} 13. dxe5 {[%clk 0:02:29.6]} 13... Nxe5 {[%clk 0:02:21.8]}
14. Rfe1 {[%clk 0:02:18.4]} 14... h6 {[%clk 0:02:15.9]} 15. f4 {[%clk
0:02:13.3]} 15... hxg5 {[%clk 0:02:14.9]} 16. Bxg5 {[%clk 0:02:14.2]} 16... f6
{[%clk 0:02:14.5]} 17. fxe5 {[%clk 0:02:14.8]} 17... fxg5 {[%clk 0:02:13.7]} 18.
d4 {[%clk 0:02:15.4]} 18... Qd7 {[%clk 0:02:10.8]} 19. Qb4 {[%clk 0:02:14.2]}
19... g4 {[%clk 0:02:07.8]} 20. Rac1 {[%clk 0:02:13.5]} 20... Bh6 {[%clk
0:02:07.4]} 21. Rc3 {[%clk 0:02:14]} 21... Rf5 {[%clk 0:02:04.8]} 22. Rb3 {[%clk
0:02:12.4]} 22... Raf8 {[%clk 0:02:04]} 23. Qd2 {[%clk 0:02:02.6]} 23... Qf7
{[%clk 0:02:01.8]} 0-1

[Event "*** SCC Grand Prix: Titled Tuesday Blitz"]
[Site "Chess.com"]
[Date "2020.07.14"]
[Round "8"]
[White "sertalzin"]
[Black "Akmal_Fayzullaev"]
[Result "1-0"]
[WhiteElo "1951"]
[BlackElo "2221"]
[TimeControl "180+1"]
[EndTime "11:32:12 PDT"]
[Termination "sertalzin won by resignation"]

1. d4 {[%clk 0:03:00.9]} 1... Nf6 {[%clk 0:02:58]} 2. c4 {[%clk 0:02:59.3]} 2...
g6 {[%clk 0:02:56.3]} 3. Nc3 {[%clk 0:02:59.3]} 3... Bg7 {[%clk 0:02:57.2]} 4.
e4 {[%clk 0:02:59.6]} 4... d6 {[%clk 0:02:58.1]} 5. f4 {[%clk 0:02:59.9]} 5...
O-O {[%clk 0:02:59]} 6. Nf3 {[%clk 0:03:00.2]} 6... c5 {[%clk 0:02:58.2]} 7. d5
{[%clk 0:03:00.3]} 7... e6 {[%clk 0:02:57.7]} 8. Be2 {[%clk 0:03:00.7]} 8...
exd5 {[%clk 0:02:58.6]} 9. cxd5 {[%clk 0:03:00.8]} 9... Bg4 {[%clk 0:02:57.3]}
10. O-O {[%clk 0:02:56.8]} 10... Re8 {[%clk 0:02:56.9]} 11. h3 {[%clk
0:02:56.7]} 11... Bxf3 {[%clk 0:02:56.5]} 12. Bxf3 {[%clk 0:02:57.2]} 12... Nbd7
{[%clk 0:02:57.4]} 13. g4 {[%clk 0:02:56.6]} 13... b5 {[%clk 0:02:54.6]} 14. g5
{[%clk 0:02:53.4]} 14... Nh5 {[%clk 0:02:54.3]} 15. Nxb5 {[%clk 0:02:46.6]}
15... Ng3 {[%clk 0:02:51.5]} 16. Re1 {[%clk 0:02:40.5]} 16... Qb6 {[%clk
0:02:48.2]} 17. Nc3 {[%clk 0:02:38.8]} 17... h5 {[%clk 0:02:40.7]} 18. h4 {[%clk
0:02:26.1]} 18... Qb4 {[%clk 0:02:24.7]} 19. Kg2 {[%clk 0:02:18.8]} 19... Bxc3
{[%clk 0:02:24.3]} 20. bxc3 {[%clk 0:02:18.1]} 20... Qxc3 {[%clk 0:02:25.2]} 21.
Bd2 {[%clk 0:02:14.3]} 21... Qb2 {[%clk 0:02:25.3]} 22. Kxg3 {[%clk 0:02:12.4]}
22... Nb6 {[%clk 0:02:25.5]} 23. Qc1 {[%clk 0:02:07]} 23... Qb5 {[%clk 0:02:23]}
24. Bc3 {[%clk 0:01:56.5]} 24... Na4 {[%clk 0:02:19.1]} 25. Bf6 {[%clk
0:01:54.1]} 1-0

[Event "*** SCC Grand Prix: Titled Tuesday Blitz"]
[Site "Chess.com"]
[Date "2020.07.14"]
[Round "8"]
[White "wonderfultime"]
[Black "jsl796"]
[Result "1-0"]
[WhiteElo "2971"]
[BlackElo "2852"]
[TimeControl "180+1"]
[EndTime "11:32:24 PDT"]
[Termination "wonderfultime won by resignation"]

1. d4 {[%clk 0:02:11.6]} 1... Nf6 {[%clk 0:02:59.3]} 2. Nf3 {[%clk 0:02:09.5]}
2... d5 {[%clk 0:02:58]} 3. Bf4 {[%clk 0:02:09.3]} 3... c5 {[%clk 0:02:57.4]} 4.
c3 {[%clk 0:02:09.7]} 4... Nc6 {[%clk 0:02:56.1]} 5. e3 {[%clk 0:02:10.1]} 5...
Nh5 {[%clk 0:02:55.9]} 6. Bg3 {[%clk 0:02:09.8]} 6... e6 {[%clk 0:02:44.5]} 7.
Nbd2 {[%clk 0:02:08.6]} 7... Nxg3 {[%clk 0:02:43.5]} 8. hxg3 {[%clk 0:02:09.5]}
8... g6 {[%clk 0:02:43.8]} 9. Bd3 {[%clk 0:02:09.2]} 9... Bd7 {[%clk 0:02:43.4]}
10. O-O {[%clk 0:02:08.8]} 10... Rc8 {[%clk 0:02:37]} 11. Qe2 {[%clk 0:02:07.7]}
11... cxd4 {[%clk 0:02:36.4]} 12. exd4 {[%clk 0:02:07.6]} 12... Bg7 {[%clk
0:02:37]} 13. Rfe1 {[%clk 0:02:07.1]} 13... O-O {[%clk 0:02:34.9]} 14. Nf1
{[%clk 0:02:07.7]} 14... f6 {[%clk 0:02:34.3]} 15. Bc2 {[%clk 0:02:04.1]} 15...
Qb6 {[%clk 0:02:33.1]} 16. Rab1 {[%clk 0:02:01.4]} 16... Rce8 {[%clk 0:02:25.9]}
17. Ne3 {[%clk 0:02:00]} 17... Kh8 {[%clk 0:02:25.4]} 18. Qd2 {[%clk 0:01:45.5]}
18... Qd8 {[%clk 0:02:22.1]} 19. c4 {[%clk 0:01:41.8]} 19... dxc4 {[%clk
0:02:11.4]} 20. Nxc4 {[%clk 0:01:42.7]} 20... Qc7 {[%clk 0:02:08.5]} 21. Bb3
{[%clk 0:01:39.4]} 21... Nb4 {[%clk 0:02:05.9]} 22. Qxb4 {[%clk 0:01:38.3]} 1-0

[Event "*** SCC Grand Prix: Titled Tuesday Blitz"]
[Site "Chess.com"]
[Date "2020.07.14"]
[Round "8"]
[White "MVM2008"]
[Black "AurumO"]
[Result "1/2-1/2"]
[WhiteElo "2220"]
[BlackElo "1994"]
[TimeControl "180+1"]
[EndTime "11:32:25 PDT"]
[Termination "Game drawn by repetition"]

1. e4 {[%clk 0:03:00.9]} 1... c5 {[%clk 0:02:49.8]} 2. Nf3 {[%clk 0:03:00.4]}
2... Nc6 {[%clk 0:02:48.5]} 3. d4 {[%clk 0:03:00.8]} 3... cxd4 {[%clk
0:02:49.4]} 4. c3 {[%clk 0:03:00.5]} 4... d5 {[%clk 0:02:48.2]} 5. exd5 {[%clk
0:03:00.4]} 5... Qxd5 {[%clk 0:02:49.1]} 6. cxd4 {[%clk 0:03:00.2]} 6... e5
{[%clk 0:02:46.5]} 7. Nc3 {[%clk 0:02:56]} 7... Bb4 {[%clk 0:02:41.9]} 8. Bd2
{[%clk 0:02:54.4]} 8... Bxc3 {[%clk 0:02:36.6]} 9. Bxc3 {[%clk 0:02:53.3]} 9...
e4 {[%clk 0:02:36.5]} 10. Ne5 {[%clk 0:02:52.8]} 10... Nxe5 {[%clk 0:02:34.7]}
11. dxe5 {[%clk 0:02:53.1]} 11... Ne7 {[%clk 0:02:35.3]} 12. Qxd5 {[%clk
0:02:44.4]} 12... Nxd5 {[%clk 0:02:36.2]} 13. Bb5+ {[%clk 0:02:44.3]} 13... Bd7
{[%clk 0:02:35.8]} 14. Bxd7+ {[%clk 0:02:41.8]} 14... Kxd7 {[%clk 0:02:36.7]}
15. O-O {[%clk 0:02:35]} 15... Nxc3 {[%clk 0:02:25]} 16. bxc3 {[%clk 0:02:35.9]}
16... Rhc8 {[%clk 0:02:22]} 17. Rad1+ {[%clk 0:02:29.8]} 17... Ke6 {[%clk
0:02:20.6]} 18. f4 {[%clk 0:02:11.4]} 18... exf3 {[%clk 0:02:19.5]} 19. Rxf3
{[%clk 0:02:10.9]} 19... Rc7 {[%clk 0:02:10]} 20. Rd6+ {[%clk 0:02:04.3]} 20...
Kxe5 {[%clk 0:02:05.5]} 21. Rfd3 {[%clk 0:02:03.9]} 21... Rac8 {[%clk 0:02:02]}
22. R3d5+ {[%clk 0:02:00.5]} 22... Ke4 {[%clk 0:02:01.3]} 23. Rd4+ {[%clk
0:01:54.2]} 23... Ke5 {[%clk 0:02:01.3]} 24. R4d5+ {[%clk 0:01:49.9]} 24... Ke4
{[%clk 0:02:00.7]} 25. Rd4+ {[%clk 0:01:50.1]} 25... Ke5 {[%clk 0:01:59.3]} 26.
R4d5+ {[%clk 0:01:50.4]} 1/2-1/2

[Event "*** SCC Grand Prix: Titled Tuesday Blitz"]
[Site "Chess.com"]
[Date "2020.07.14"]
[Round "8"]
[White "MIJUAREZ"]
[Black "queen_iryna"]
[Result "1-0"]
[WhiteElo "2391"]
[BlackElo "2252"]
[TimeControl "180+1"]
[EndTime "11:32:37 PDT"]
[Termination "MIJUAREZ won by resignation"]

1. e4 {[%clk 0:03:00.9]} 1... d6 {[%clk 0:02:59.6]} 2. d4 {[%clk 0:03:00.1]}
2... Nf6 {[%clk 0:02:59.7]} 3. Nc3 {[%clk 0:03:00.8]} 3... e5 {[%clk 0:02:58.5]}
4. f3 {[%clk 0:03:01.5]} 4... Nbd7 {[%clk 0:02:51.6]} 5. Nge2 {[%clk 0:02:59.5]}
5... Be7 {[%clk 0:02:47.9]} 6. Be3 {[%clk 0:02:59.2]} 6... c6 {[%clk 0:02:48]}
7. Qd2 {[%clk 0:02:59.5]} 7... O-O {[%clk 0:02:45.6]} 8. O-O-O {[%clk
0:02:59.2]} 8... d5 {[%clk 0:02:31.5]} 9. exd5 {[%clk 0:02:55.2]} 9... exd4
{[%clk 0:02:01.9]} 10. Nxd4 {[%clk 0:02:45.9]} 10... cxd5 {[%clk 0:01:54.4]} 11.
Nf5 {[%clk 0:02:30.3]} 11... Bb4 {[%clk 0:01:51.3]} 12. Bd4 {[%clk 0:02:30.1]}
12... Nb6 {[%clk 0:01:24.9]} 13. Nxg7 {[%clk 0:02:28.6]} 13... Nh5 {[%clk
0:00:45.6]} 14. Nxh5 {[%clk 0:02:24.2]} 1-0

[Event "*** SCC Grand Prix: Titled Tuesday Blitz"]
[Site "Chess.com"]
[Date "2020.07.14"]
[Round "8"]
[White "ferdipy"]
[Black "Brave_spirit12"]
[Result "0-1"]
[WhiteElo "2343"]
[BlackElo "2501"]
[TimeControl "180+1"]
[EndTime "11:32:43 PDT"]
[Termination "Brave_spirit12 won by resignation"]

1. e4 {[%clk 0:03:00.1]} 1... e6 {[%clk 0:02:59.6]} 2. d4 {[%clk 0:02:59.9]}
2... d5 {[%clk 0:03:00.5]} 3. e5 {[%clk 0:03:00.2]} 3... c5 {[%clk 0:03:00.4]}
4. c3 {[%clk 0:03:00.3]} 4... Nc6 {[%clk 0:03:01.3]} 5. Nf3 {[%clk 0:03:00.9]}
5... Qb6 {[%clk 0:03:01.7]} 6. a3 {[%clk 0:03:01.5]} 6... f6 {[%clk 0:03:01.7]}
7. exf6 {[%clk 0:02:58.9]} 7... Nxf6 {[%clk 0:03:02.6]} 8. Bd3 {[%clk
0:02:57.9]} 8... Bd6 {[%clk 0:03:02.4]} 9. O-O {[%clk 0:02:54.8]} 9... c4 {[%clk
0:03:02.2]} 10. Bc2 {[%clk 0:02:53.8]} 10... O-O {[%clk 0:03:01.7]} 11. Bg5
{[%clk 0:02:52.7]} 11... Qxb2 {[%clk 0:02:58.4]} 12. Re1 {[%clk 0:02:47.9]}
12... Qxa1 {[%clk 0:02:48.9]} 13. Ne5 {[%clk 0:02:29.1]} 13... Qb2 {[%clk
0:02:34.2]} 14. Bc1 {[%clk 0:02:25]} 14... Qb6 {[%clk 0:02:30.2]} 15. f4 {[%clk
0:02:25.9]} 15... Bxe5 {[%clk 0:02:26.5]} 16. fxe5 {[%clk 0:02:24.8]} 16... Ne4
{[%clk 0:02:27.4]} 17. a4 {[%clk 0:02:17.8]} 17... Bd7 {[%clk 0:02:25.2]} 18.
Qg4 {[%clk 0:02:16.1]} 18... Nxe5 {[%clk 0:02:21.8]} 19. Qh3 {[%clk 0:02:13.8]}
19... Nd3 {[%clk 0:02:20.9]} 20. Bxd3 {[%clk 0:02:07.8]} 20... cxd3 {[%clk
0:02:21.8]} 21. Qxd3 {[%clk 0:02:06.3]} 21... Rf7 {[%clk 0:02:22.3]} 22. Nd2
{[%clk 0:02:00.2]} 22... Raf8 {[%clk 0:02:21.5]} 23. Nf3 {[%clk 0:01:59.6]}
23... Bxa4 {[%clk 0:02:19.2]} 24. c4 {[%clk 0:01:57.8]} 24... Qb3 {[%clk
0:02:15.9]} 25. Qe2 {[%clk 0:01:47.3]} 25... Rxf3 {[%clk 0:02:07.2]} 26. gxf3
{[%clk 0:01:45]} 26... Qxf3 {[%clk 0:02:08.1]} 0-1

[Event "*** SCC Grand Prix: Titled Tuesday Blitz"]
[Site "Chess.com"]
[Date "2020.07.14"]
[Round "8"]
[White "Nayemhaque22"]
[Black "Barmen_EV"]
[Result "0-1"]
[WhiteElo "2230"]
[BlackElo "2440"]
[TimeControl "180+1"]
[EndTime "11:33:11 PDT"]
[Termination "Barmen_EV won by resignation"]

1. e4 {[%clk 0:03:00.9]} 1... c5 {[%clk 0:02:59.7]} 2. Nf3 {[%clk 0:02:59.7]}
2... Nc6 {[%clk 0:03:00.2]} 3. Bb5 {[%clk 0:02:58.4]} 3... e6 {[%clk 0:02:59.9]}
4. O-O {[%clk 0:02:56.6]} 4... Nge7 {[%clk 0:03:00.1]} 5. Re1 {[%clk 0:02:56]}
5... Ng6 {[%clk 0:02:59.1]} 6. c3 {[%clk 0:02:54.6]} 6... d5 {[%clk 0:02:59.1]}
7. exd5 {[%clk 0:02:54.1]} 7... Qxd5 {[%clk 0:03:00]} 8. d4 {[%clk 0:02:52.9]}
8... cxd4 {[%clk 0:03:00.2]} 9. Nxd4 {[%clk 0:02:51.1]} 9... Bd7 {[%clk
0:02:59.9]} 10. Bxc6 {[%clk 0:02:48.1]} 10... bxc6 {[%clk 0:02:54.2]} 11. Nd2
{[%clk 0:02:43.8]} 11... c5 {[%clk 0:02:47.8]} 12. N4f3 {[%clk 0:02:40.5]} 12...
Bc6 {[%clk 0:02:47.4]} 13. Qb3 {[%clk 0:02:38.1]} 13... Qh5 {[%clk 0:02:38.8]}
14. c4 {[%clk 0:02:32.2]} 14... Bd6 {[%clk 0:02:31.5]} 15. Ne4 {[%clk
0:02:29.1]} 15... Bc7 {[%clk 0:01:50.5]} 16. Ng3 {[%clk 0:02:04.7]} 16... Bxg3
{[%clk 0:01:48.9]} 17. hxg3 {[%clk 0:02:05.2]} 17... O-O {[%clk 0:01:49.8]} 18.
Be3 {[%clk 0:02:02.3]} 18... Bxf3 {[%clk 0:01:41.8]} 19. gxf3 {[%clk 0:02:01.6]}
19... Ne5 {[%clk 0:01:42.7]} 20. Bxc5 {[%clk 0:01:45.5]} 20... Nxf3+ {[%clk
0:01:38.8]} 21. Kf1 {[%clk 0:01:42.5]} 21... Nd2+ {[%clk 0:01:37.6]} 22. Kg2
{[%clk 0:01:37.9]} 22... Nxb3 {[%clk 0:01:38.5]} 0-1

[Event "*** SCC Grand Prix: Titled Tuesday Blitz"]
[Site "Chess.com"]
[Date "2020.07.14"]
[Round "8"]
[White "nrvisakh"]
[Black "Ranindu2003"]
[Result "1-0"]
[WhiteElo "2781"]
[BlackElo "2611"]
[TimeControl "180+1"]
[EndTime "11:33:27 PDT"]
[Termination "nrvisakh won by resignation"]

1. e4 {[%clk 0:03:00.9]} 1... c5 {[%clk 0:03:00]} 2. Nf3 {[%clk 0:03:00.9]} 2...
d6 {[%clk 0:02:59.1]} 3. Bb5+ {[%clk 0:03:00.8]} 3... Nd7 {[%clk 0:02:58.4]} 4.
O-O {[%clk 0:03:00.2]} 4... a6 {[%clk 0:02:58.6]} 5. Bxd7+ {[%clk 0:02:59.3]}
5... Bxd7 {[%clk 0:02:58]} 6. d4 {[%clk 0:02:59.5]} 6... cxd4 {[%clk 0:02:58.7]}
7. Qxd4 {[%clk 0:02:59.6]} 7... e5 {[%clk 0:02:59.4]} 8. Qd3 {[%clk 0:02:59.3]}
8... h6 {[%clk 0:03:00]} 9. c4 {[%clk 0:02:58.9]} 9... Nf6 {[%clk 0:02:59.6]}
10. Nc3 {[%clk 0:02:59.1]} 10... Be7 {[%clk 0:02:57.7]} 11. Rd1 {[%clk
0:02:59.1]} 11... O-O {[%clk 0:02:55.1]} 12. c5 {[%clk 0:02:58.9]} 12... dxc5
{[%clk 0:02:50.2]} 13. Nxe5 {[%clk 0:02:59]} 13... Bg4 {[%clk 0:02:35.4]} 14.
Nxg4 {[%clk 0:02:52.3]} 14... Nxg4 {[%clk 0:02:25.1]} 15. Qg3 {[%clk 0:02:33.6]}
15... Qc8 {[%clk 0:02:20.7]} 16. Nd5 {[%clk 0:02:33.4]} 16... Bd8 {[%clk
0:02:04.6]} 17. h3 {[%clk 0:02:26]} 17... Nf6 {[%clk 0:01:58.5]} 18. Bxh6 {[%clk
0:02:25.4]} 18... Nh5 {[%clk 0:01:58.5]} 19. Qf3 {[%clk 0:02:25]} 19... Nf6
{[%clk 0:01:53]} 20. Bf4 {[%clk 0:02:21.7]} 20... Nxd5 {[%clk 0:01:51]} 21. Rxd5
{[%clk 0:02:21.7]} 21... b6 {[%clk 0:01:49.2]} 22. Rad1 {[%clk 0:02:20.3]} 22...
Be7 {[%clk 0:01:46]} 23. Rd7 {[%clk 0:02:17.5]} 23... Re8 {[%clk 0:01:42.2]} 24.
e5 {[%clk 0:02:04.7]} 24... c4 {[%clk 0:01:28.2]} 25. Bg5 {[%clk 0:01:57.5]} 1-0